Cogmind - Beta 11.1 @@@ ROGUE MODE // 2022.12.17 @ 09:58:44 Player: Milkduds Result: Smashed by cave-in Performance ------------- Evolutions (0) 0 Regions Visited (2) 400 Robots Destroyed (19) 95 Value Destroyed (521) 521 Prototype IDs (0) 0 Alien Tech Used (0) 0 Bonus (54) 54 TOTAL SCORE: 1070 Bonus ------- Follower Combat Kills 60 Friendly Fire -6 Cogmind --------- Core Integrity 0/250 Matter 300/300 Energy 248/250 System Corruption 10% Temperature Cool (1) Movement Treading (160) Location -10/Mines Parts ------- > --- POWER (1) -------- Ion Engine > --- PROPULSION (2) --- Light Treads > --- UTILITY (2) ------ Small Storage Unit > --- WEAPON (2) ------- (None) > --- INVENTORY (8) ---- EM Pulse Gun Rocket Launcher Peak State ------------ > --- POWER ------------ Light Ion Engine > --- PROPULSION ------- Flight Unit Flight Unit > --- UTILITY ---------- Heat Sink Large Storage Unit > --- WEAPON ----------- Assault Rifle Light Assault Rifle > --- INVENTORY -------- Wheel Grenade Launcher [Rating: 7] Favorites ----------- Power Light Ion Engine Engine Light Ion Engine Propulsion Hover Unit Treads Light Treads Leg Aluminum Leg Wheel Wheel Hover Unit Hover Unit Flight Unit Flight Unit Utility Heat Sink Device Heat Sink Storage Small Storage Unit Protection Power Shielding Weapon EM Pulse Gun Energy Gun EM Pulse Gun Energy Cannon Beam Cannon Ballistic Gun Light Assault Rifle Launcher Grenade Launcher Build | -11 -10 -10 ------- Run | Scr Mat Min Slots Evolved . | . . . Power . | . . . Propulsion . | . . . Utility . | . . . Weapon . | . . . Parts Attached 35 | 8 21 6 Power 4 | 1 2 1 Engine 4 | 1 2 1 Core . | . . . Reactor . | . . . Propulsion 12 | 3 8 1 Treads 1 | . . 1 Leg 2 | . 2 . Wheel 3 | 3 . . Hover 4 | . 4 . Flight 2 | . 2 . Utility 9 | 1 7 1 Device 3 | 1 2 . Storage 4 | . 3 1 Processor . | . . . Hackware . | . . . Protection 2 | . 2 . Artifact . | . . . Weapon 10 | 3 4 3 Energy Gun 3 | 1 2 . Energy Cannon 2 | . 1 1 Ballistic Gun 3 | 2 1 . Ballistic Cannon . | . . . Launcher 2 | . . 2 Special Weapon . | . . . Impact Weapon . | . . . Slashing Weapon . | . . . Piercing Weapon . | . . . Special Melee Weapon . | . . . Unidentified Prototypes . | . . . Parts Lost 13 | . 6 7 Power 1 | . 1 . Propulsion 4 | . 2 2 Utility 2 | . 1 1 Weapon 6 | . 2 4 Highest Loss Streak 3 | . 2 3 To Critical Strikes . | . . . Average Slot Usage (%) 84 | . 84 84 Engine 13 | . 11 14 Treads 2 | . . 4 Leg 3 | . 8 . Wheel 1 | . 3 . Hover 8 | . 8 9 Flight 3 | . 6 . Device 11 | . 13 9 Storage 2 | . . 4 Protection 9 | . 4 13 Energy Gun 10 | . 15 7 Energy Cannon 8 | . 1 13 Ballistic Gun 4 | . 9 . Launcher 3 | . . 6 Naked Turns . | . . . Heaviest Build 17 | 6 10 17 Greatest Support 20 | 20 20 20 Greatest Overweight (x) 4 | . 1 4 Average Overweight (x) . | . . . Largest Inventory Capacity 15 | 5 15 8 Average Capacity 5 | 5 5 5 Most Carried 5 | 4 5 5 Average Carried 3 | 1 3 3 Final Capacity 8 | 5 5 8 Final Carried 3 | 2 3 2 Class Distribution -------------------- 90% | Mutant 9% | Scavenger-Mutant Dominant Class ---------------- Mutant | -10/Materials Mutant | -10/Mines Resources | -11 -10 -10 ----------- Run | Scr Mat Min Matter Collected 623 | 285 187 151 Remotely . | . . . Salvage Created 560 | 31 244 285 Parts 32 | 1 15 16 Haulers Intercepted . | . . . Recyclers Shooed . | . . . Parts Field Recycled . | . . . Retrieved Matter . | . . . Parts Self-Destructed . | . . . Prevented . | . . . Kills | -11 -10 -10 ------- Run | Scr Mat Min Combat Hostiles Destroyed 16 | 1 6 9 Guns 7 | 1 5 1 Cannons 3 | . . 3 AOE 5 | . . 5 Classes Destroyed 4 | 1 2 1 Mechanic 1 | . . 1 Watcher 2 | . 2 . Swarmer 5 | . 2 3 Grunt 11 | 1 4 6 Best Kill Streak 3 | 1 2 3 Combat Bots Only 2 | 1 2 2 Max Kills in Single Turn 2 | 1 1 2 Gunslinging . | . . . Exploded 2 | . . 2 Melee . | . . . Uniques/NPCs Destroyed . | . . . Combat | -11 -10 -10 -------- Run | Scr Mat Min Damage Taken 1567 | 56 629 882 Core 317 | . 126 191 Absorbed by Shields . | . . . Redirected to Shielding 21 | . 8 13 Core Remaining (%) 100 | 100 . . Volleys Fired 64 | 5 39 20 Largest 2 | 2 2 2 Hottest 100 | 60 80 100 Shots Fired 121 | 10 77 34 Gun 97 | 10 77 10 Cannon 15 | . . 15 Launcher 9 | . . 9 Special . | . . . Kinetic 43 | 5 38 . Thermal 34 | 5 14 15 Explosive 9 | . . 9 Electromagnetic 35 | . 25 10 Robot Hit Streak 15 | 8 15 8 Robot Miss Streak 7 | 1 7 3 Penetration Max . | . . . Secondary Targets 1 | . 1 . Max Gunslinging Chain 1 | . 1 . Shots Hit Robots 73 | 8 44 21 Core Hits 34 | 2 15 17 Critical Kills . | . . . Critical Parts Destroyed 1 | . 1 . Critical Strikes 1 | . 1 . Destroy 1 | . 1 . Melee Attacks . | . . . Impact . | . . . Slashing . | . . . Piercing . | . . . Sneak Attacks . | . . . Combat Hostiles . | . . . Follow-up Attacks . | . . . Damage Inflicted 1233 | 79 525 629 Guns 714 | 79 525 110 Cannons 177 | . . 177 Explosions 342 | . . 342 Melee . | . . . Ramming . | . . . Kinetic 270 | 34 236 . Thermal 351 | 45 129 177 Explosive 342 | . . 342 Electromagnetic 270 | . 160 110 Impact . | . . . Slashing . | . . . Piercing . | . . . Highest Corruption 7 | . . 7 Average Corruption 7 | . . 7 Corruption Purged . | . . . Corruption Blocked . | . . . Overload Shots . | . . . Overflow Damage 13 | . . 13 Projectiles . | . . . Explosions 13 | . . 13 Melee . | . . . Knockbacks . | . . . Impact . | . . . Kinetic . | . . . Secondary . | . . . Self-Inflicted Damage 46 | . . 46 Shots 2 | . . 2 Rammed . | . . . Targets Rammed . | . . . Kicked . | . . . Crushed . | . . . Highest Temperature 135 | 70 67 135 Average Temperature 42 | 42 32 52 Received Heat Transfer 456 | 30 276 150 Siege Activations . | . . . Robots Corrupted 1 | . 1 . Combat Hostiles 1 | . 1 . Parts Fried 2 | . 2 . Impact Corruptions . | . . . Robots Melted . | . . . Combat Hostiles . | . . . Parts Melted 2 | . 1 1 Heat Transferred 770 | 100 300 370 Parts Sabotaged . | . . . Parts Stolen . | . . . Parts Stripped . | . . . Power Chain Reactions . | . . . Missiles Intercepted . | . . . Alert | -11 -10 -10 ------- Run | Scr Mat Min Peak Influence 263 | 20 218 263 Initial 13 | . 13 12 Average 99 | 1 112 110 Maximum Alert Level 1 | . 1 1 Low Security (%) 88 | 100 97 78 Level 1 11 | . 2 21 Level 2 . | . . . Level 3 . | . . . Level 4 . | . . . Level 5 . | . . . High Security . | . . . Max Security . | . . . Squads Dispatched 2 | . 1 1 Investigation 1 | . 1 . Extermination . | . . . Reinforcement . | . . . Assault 1 | . . 1 Garrison . | . . . Intercept . | . . . Searches Triggered . | . . . Construction Impeded . | . . . Haulers Reinforced . | . . . Active Scanning Responses . | . . . Cargo Convoy Interrupts . | . . . Stealth | -11 -10 -10 --------- Run | Scr Mat Min Distress Signals 2 | . 2 . Communications Jammed . | . . . Distress Signals . | . . . Times Spotted 25 | 1 12 12 Peak Tracking Total 5 | 1 5 3 Tactical Retreats 5 | . 4 1 Traps | -11 -10 -10 ------- Run | Scr Mat Min Traps Triggered 1 | . 1 . Indirectly . | . . . Trap Hack Attempts . | . . . Triggered . | . . . Disarmed . | . . . Reprogrammed . | . . . Reused . | . . . Traps Extracted . | . . . Installed . | . . . Triggered . | . . . Machines | -11 -10 -10 ---------- Run | Scr Mat Min Machines Disabled . | . . . Max in Single Turn . | . . . Machines Sabotaged . | . . . Garrisons Compromised . | . . . Overloaded Fab Kills . | . . . Hacking | -11 -10 -10 --------- Run | Scr Mat Min Machines Accessed 4 | . 4 . Terminals 3 | . 3 . Fabricators . | . . . Repair Stations . | . . . Recycling Units 1 | . 1 . Scanalyzers . | . . . Garrison Access . | . . . Total Hacks 10 | . 10 . Successful 9 | . 9 . Failed . | . . . Catastrophic . | . . . Database Lockouts 1 | . 1 . Manual . | . . . Terminals 8 | . 8 . Fabricators . | . . . Repair Stations . | . . . Recycling Units 2 | . 2 . Scanalyzers . | . . . Garrison Access . | . . . Terminal Hacks 7 | . 7 . Record 5 | . 5 . Alert Level 2 | . 2 . Fabricator Hacks . | . . . Repair Station Hacks . | . . . Recycling Unit Hacks 2 | . 2 . Process 1 | . 1 . Retrieve Matter 1 | . 1 . Scanalyzer . | . . . Garrison Access Hacks . | . . . Unauthorized Hacks . | . . . Terminals . | . . . Fabricators . | . . . Repair Stations . | . . . Recycling Units . | . . . Scanalyzers . | . . . Garrison Access . | . . . Data Cores Recovered . | . . . Used . | . . . Hacking Detections 2 | . 2 . Full Trace Events 1 | . 1 . Feedback Events . | . . . Feedback Blocked . | . . . Robot Schematics Acquired . | . . . Robots Built . | . . . Authchips . | . . . Time . | . . . Total Robot Build Rating . | . . . Part Schematics Acquired . | . . . Parts Built . | . . . Authchips . | . . . Time . | . . . Total Part Build Rating . | . . . Parts Repaired . | . . . Time . | . . . Parts Recycled . | . . . Recycled Matter 47 | . 47 . Retrieved Matter 47 | . 47 . Retrieved Components . | . . . Parts Scanalyzed . | . . . Part Schematics Acquired . | . . . Parts Damaged . | . . . Bothacking | -11 -10 -10 ------------ Run | Scr Mat Min Used RIF Installer . | . . . Robots Hacked . | . . . Non-combat . | . . . Combat . | . . . Robot Hacks Applied . | . . . Relay Couplers Released . | . . . Fabnet Peak Effective % . | . . . Robots Rewired . | . . . Allies Hacked . | . . . Hacks Repelled . | . . . Allies | -11 -10 -10 -------- Run | Scr Mat Min Total Allies 1 | . . 1 Largest Group 1 | . . 1 Highest-Rated Group 31 | . . 31 Highest-Rated Ally 31 | . . 31 Total Orders . | . . . Ally Attacks 6 | . . 6 Total Damage 83 | . . 83 Kills 2 | . . 2 Allies Corrupted . | . . . Allies Melted . | . . . Intel | -11 -10 -10 ------- Run | Scr Mat Min Robot Analysis Total . | . . . Derelict Logs Recovered . | . . . Drone Launches . | . . . Drone Recoveries . | . . . Exploration | -11 -10 -10 ------------- Run | Scr Mat Min Turns Passed 1151 | 130 449 572 Spaces Moved 989 | 128 448 413 Core 53 | 26 . 27 Treads 104 | . . 104 Legs 62 | . 62 . Wheels 121 | 102 19 . Hover 428 | . 146 282 Flight 221 | . 221 . Fastest Speed 37 | 50 37 56 Average Speed 85 | 73 57 120 Slowest Speed 250 | 80 120 250 Overloaded Moves . | . . . Propulsion Burnouts . | . . . Robots Hopped . | . . . Cave-ins Triggered 2 | . . 2 Exploration Rate (%) 39 | 7 56 56 Regions Visited 2 Branch Regions 1 Pre-discovered Areas . | . . . Known Exits Taken . | . . . Unknown Exits Taken 2 | 1 1 . Scrap Searched 2 | . . 2 Spaces Dug . | . . . Terrain Destroyed 72 | . . 72 Melee . | . . . Projectile . | . . . AOE 72 | . . 72 Terrain Rammed . | . . . Walls Destroyed . | . . . Machines Disabled . | . . . Actions | -11 -10 -10 --------- Run | Scr Mat Min Total 1181 | 156 571 454 Wait 39 | . 29 10 Move 985 | 127 447 411 Hop . | . . . Pick Up 34 | 11 19 4 Fast Attach 2 | . 2 . Attach 31 | 8 18 5 Detach 5 | 2 3 . Swap 2 | . 1 1 Drop 18 | 3 13 2 Fire 64 | 5 39 20 Melee . | . . . Ram . | . . . Kick . | . . . Crush . | . . . Escape Stasis 1 | . . 1 Rewire . | . . . Trap . | . . . Miscellaneous . | . . . Route ------- -11/Scrapyard -10/Materials (discovered 2 exits: [*Mat] / [*Min]) -10/Mines History --------- Turn | Location | Event 2 | -11/Scrapyard | Met Revision 17 104 | -11/Scrapyard | Discovered new exit (range 8) 131 | -11/Scrapyard | Entered Materials 313 | -10/Materials | Build established: Mutant 371 | -10/Materials | Discovered new exit (range 14) 421 | -10/Materials | Discovered new exit (range 16) 429 | -10/Materials | Central database locked down 518 | -10/Materials | Core integrity fell below 50% 580 | -10/Materials | Entered Mines 617 | -10/Mines | Received a Rocket Launcher from a helpful Derelict 1042 | -10/Mines | Met a Derelict testing a Signal Generator 1148 | -10/Mines | Crushed by falling debris 1149 | -10/Mines | Core integrity fell below 20% 1152 | -10/Mines | Crushed by falling debris 1152 | -10/Mines | Smashed by cave-in Last Messages --------------- The unstable cave ceiling collapses. U-05 Engineer builds a Wall. The unstable cave ceiling collapses. U-05 Engineer lays Concrete. U-05 Engineer builds a Wall. U-05 Engineer lays Concrete. U-05 Engineer builds a Wall. The unstable cave ceiling collapses. Crushed by falling debris. [Achievement: Unlikely Earthworm] Grenade Launcher destroyed. System corrupted by crushing effect (+3). Power Shielding destroyed. System corrupted by crushing effect (+4). U-05 Engineer builds a Wall. The unstable cave ceiling collapses. Crushed by falling debris. Beam Cannon destroyed. System corrupted by crushing effect (+3). [Achievement: First Step to Greatness] Map ----- +----------------------------------------------------+ | ???????# """ ########## ###########? | | ???????# """ # | | ??????## ##### """ # | | ???#### #???## ## # ############# # | | ??## ######## ####### #??????????????? | | ??# #?## ##?????# #??????????????? | | ??# ###### #??# #??????# #??????????????? | | ??## ##????# #??## ##??????# #??????????????? | | ???#### #?????# #???#####???????# #??????????????? | | ??????# #?????# #???????????????# #??????????????? | | ??????# ##????# #???????????????# #??????????????? | | ?????## ##???# #???????????????? ???????????????? | | ????## #???# #???????????????? ???????????????? | | ?# ## #???# #???????????????? ???????????????? | | ## # $ #???# #???????????????? ???????????????? | | ##???# #???????????????? ???????????????? | | ##????# #???????????????? ???????????????? | | #### ##????# #???????????????? ???????????????? | | ???# #= #????# #????????????????????????????????? | | ???### # #????# ####?????????????????????????????? | | ????## # #????# #?????????????????????????????? | | ???### ####???# ## #######???????????????????????? | | ??## = ###### ## # ##??????????????????????? | | ??# ## # # # #??????????????????????? | | ??# = =####### ###### #??????????????????????? | | ??# #?????# % #@#??????????????????????? | | ### # #?????######!#=#??????????????????????? | | #####??????# # # #####??????????????????? | | ####????????### %=#### ##?????????????????? | | ####????????????# # %## #?????????????????? | | # ##???????????????# = ##????????????????? | | # ##????????????????# # #????????????????? | | ^ #?????????????????### #????????????????? | | ##???????????????????## ## ##????????????????? | | ##?????????????????????#########?????????????????? | | ?????????????????????????????????????????????????? | | ?????????????????????????????????????????????????? | | ?????????????????????????????????????????????????? | | | | | | | | | | | | | | | | | | | | | | | | | +----------------------------------------------------+ Best States ------------- Heat Dissipation 35 Energy Generation 10 Energy Capacity 250 Matter Stores 300 Matter Capacity 300 Sight Range 16 Terrain Scan Density 10 Power Shielding 33 Evasion (%) 62 Recoil Reduction 1 Item Schematics ----------------- None Robot Schematics ------------------ None Fabricated ------------ Nothing Alien Tech Used ----------------- None Achievements -------------- Crack Shot First Step to Greatness Power Corrupts Storm Trooper Universal Adapter Unlikely Earthworm Challenges ------------ None Game ------ Seed ShockWaveProjector Manual? 0 Play Time 00:48:22 Cumulative 1.5 hours Start 2022.12.17 @ 09:02:43 End 2022.12.17 @ 09:58:44 Sessions 1 Manual Loads 0 Difficulty Rogue Special Mode None Game No. 1 Rogue 1 Adventurer 0 Explorer 0 Win Type - Total 0 Types 0/0/0/0/0/0/0/0/0 Lore% 0 Gallery% 2 Achievement% 2 Wizard Run 0 Options --------- ASCII 0 Keyboard 0 Movement Mouse Keybinds 0 Fullscreen 1 Font 24/Smallcaps Map View 76x50 Tactical HUD 0 Map Filters NONE Filters NONE Steam 1 RUN: 37cdbd3a-9255-4116-89f4-2791ef4ced09